fUST/lending_fUST_20251113
["ID","MTS","AMOUNT","RATE_DAILY","PERIOD"]
[393864538,1763045550637,-5000.0,0.00052311,30]
[393864539,1763045550650,-2691.01,0.00052311,30]
[393864540,1763045550663,-200.0,0.00052372,120]
[393864541,1763045550675,-500.0,0.0005248,60]
[393864542,1763045550687,-209.0,0.0005249,30]
[393864543,1763045550699,-1000.0,0.000525,120]
[393864544,1763045550711,-200.0,0.0005254,120]
[393864545,1763045550722,-177.669168,0.00052632,2]
[393864546,1763045550734,-787.57,0.000528,60]
[393864547,1763045550746,-251488.1,0.00053,120]
[393864548,1763045550759,-1000.0,0.00053,120]
[393864549,1763045550770,-176.18042109,0.00053,120]
[393864550,1763045550783,-1000.0,0.00053,120]
[393864551,1763045550795,-1000.0,0.00053,120]
[393864552,1763045550807,-12084.9,0.00053,120]
[393864553,1763045550820,-4585.83,0.00053047,30]
[393864554,1763045550833,-4000.0,0.000532,120]
[393864555,1763045550845,-175.325944,0.00053342,120]
[393864556,1763045550858,-150.0,0.000534,10]
[393864557,1763045550870,-569.2748326,0.00053495,120]
[393864558,1763045550888,-876.44925124,0.000535,120]
[393864559,1763045550900,-1000.0,0.000535,120]
[393864560,1763045550912,-500.0,0.00053576,60]
[393864561,1763045550925,-200.0,0.000537,120]
[393864562,1763045550936,-209.0,0.0005379,30]
[393864563,1763045550949,-1616.53,0.000538,14]
[393864564,1763045550961,-500.0,0.000539,30]
[393864565,1763045550974,-500.0,0.000539,30]
[393864566,1763045550987,-500.0,0.000539,30]
[393864567,1763045551000,-500.0,0.000539,30]
[393864568,1763045551015,-500.0,0.000539,30]
[393864569,1763045551028,-500.0,0.000539,30]
[393864570,1763045551040,-500.0,0.000539,30]
[393864571,1763045551053,-374.44488232,0.000539,30]
[393864572,1763045551066,-500.0,0.000539,30]
[393864573,1763045551078,-500.0,0.000539,30]
[393864574,1763045551090,-500.0,0.000539,30]
[393864575,1763045551102,-500.0,0.000539,30]
[393864576,1763045551114,-500.0,0.000539,30]
[393864577,1763045551132,-500.0,0.000539,30]
[393864578,1763045551144,-500.0,0.000539,30]
[393864579,1763045551155,-334.7513609,0.000539,30]
[393864580,1763045551167,-200.0,0.000539,120]
[393864581,1763045551179,-2602.64354504,0.000539,120]
[393864582,1763045551192,-250.0,0.00053948,10]
[393864583,1763045551204,-527.94748323,0.00053959,120]
[393864584,1763045551216,-13154.179821,0.00053995,120]
[393864585,1763045551228,-1000.0,0.00054,120]
[393864586,1763045551240,-266.5,0.00054,120]
[393864587,1763045551252,-200.0,0.00054,120]
[393864588,1763045551264,-1000.0,0.00054,120]
[393864589,1763045551276,-1326.240263,0.00054,120]
[393864590,1763045551288,-3000.0,0.00054,7]
[393864591,1763045551302,-4000.0,0.000542,120]
[393864592,1763045551313,-423.0,0.000543,120]
[393864593,1763045551325,-1000.0,0.00054383,60]
[393864594,1763045551336,-1000.0,0.00054383,60]
[393864595,1763045551347,-1000.0,0.00054383,60]
[393864596,1763045551360,-1000.0,0.00054383,60]
[393864597,1763045551376,-1000.0,0.00054383,60]
[393864598,1763045551388,-1000.0,0.00054383,60]
[393864599,1763045551400,-1000.0,0.00054383,60]
[393864600,1763045551412,-1000.0,0.00054383,60]
[393864601,1763045551425,-1000.0,0.00054383,60]
[393864602,1763045551436,-296.78903456,0.00054383,60]
[393864603,1763045551449,-350.0,0.00054496,10]
[393864604,1763045551461,-201.81860228,0.000545,5]
[393864605,1763045551473,-226.0,0.000545,120]
[393864606,1763045551486,-271.05,0.000545,30]
[393864608,1763045551498,-156.0,0.000546,120]
[393864609,1763045551509,-585.43,0.000546,14]
[393864610,1763045551521,-2000.0,0.000546,60]
[393864611,1763045551533,-500.0,0.00054672,60]
[393864612,1763045551545,-241.85189992,0.00054794,120]
[393864613,1763045551556,-153.0,0.00054795,120]
[393864614,1763045551568,-153.0,0.00054795,120]
[393864615,1763045551580,-170.464192,0.00054795,14]
[393864616,1763045551592,-153.0,0.00054795,120]
[393864617,1763045551603,-153.0,0.00054795,120]
[393864618,1763045551616,-153.0,0.00054795,120]
[393864619,1763045551943,-153.0,0.00054795,120]
[393864620,1763045551998,-153.0,0.00054795,120]
[393864621,1763045552009,-153.0,0.00054795,120]
[393864622,1763045552019,-153.0,0.00054795,120]
[393864623,1763045552029,-153.0,0.00054795,120]
[393864624,1763045552039,-153.0,0.00054795,120]
[393864625,1763045552049,-263.675407,0.00054795,120]
[393864626,1763045552059,-263.675407,0.00054795,120]
[393864627,1763045552069,-263.675407,0.00054795,120]
[393864628,1763045552078,-263.675407,0.00054795,120]
[393864629,1763045552088,-263.675407,0.00054795,120]
[393864630,1763045552097,-263.675407,0.00054795,120]
[393864631,1763045552107,-263.675407,0.00054795,120]
[393864632,1763045552117,-263.675407,0.00054795,120]
[393864633,1763045552132,-263.675407,0.00054795,120]
[393864634,1763045552141,-263.675407,0.00054795,120]
[393864635,1763045552151,-263.675407,0.00054795,120]
[393864636,1763045552160,-263.675407,0.00054795,120]
[393864637,1763045552169,-263.675407,0.00054795,120]
[393864638,1763045552184,-263.675407,0.00054795,120]
[393864639,1763045552194,-263.675407,0.00054795,120]
[393864640,1763045552203,-263.675407,0.00054795,120]
[393864641,1763045552214,-263.675407,0.00054795,120]
[393864642,1763045552224,-263.675407,0.00054795,120]
[393864643,1763045552234,-263.675407,0.00054795,120]
[393864644,1763045552244,-263.675403,0.00054795,120]
[393864645,1763045552260,-153.0,0.00054795,120]
[393864646,1763045552269,-153.0,0.00054795,120]
[393864647,1763045552280,-153.0,0.00054795,120]
[393864648,1763045552289,-153.0,0.00054795,120]
[393864649,1763045552302,-153.0,0.00054795,120]
[393864650,1763045552313,-10000.0,0.000549,120]
[393864651,1763045552322,-1000.0,0.00054999,120]
[393864652,1763045552334,-1500.0,0.00055,120]
[393864653,1763045552344,-1998.24333978,0.00055,120]
[393864654,1763045552354,-1000.0,0.00055,120]
[393864655,1763045552364,-1326.0,0.00055,120]
[393864656,1763045552380,-450.0,0.00055044,15]
[393864657,1763045552390,-209.0,0.0005509,120]
[393864658,1763045552400,-161.20594668,0.00055592,15]
[393864659,1763045552410,-2000.0,0.000556,62]
[393864660,1763045552420,-500.0,0.00055768,120]
[393864661,1763045552430,-1500.0,0.00056,120]
[393864662,1763045552440,-200.0,0.00056,120]
[393864663,1763045552450,-1000.0,0.00056,120]
[393864664,1763045552460,-150.97,0.00056385,30]
[393864665,1763045552470,-200.0,0.000564,120]
[393864666,1763045552480,-209.0,0.000564,120]
[393864667,1763045552489,-357.01646553,0.000566,120]
[393864668,1763045552500,-181.0,0.000566,65]
[393864669,1763045552510,-500.0,0.00056864,120]
[393864670,1763045552520,-1898.59768213,0.00057,120]
[393864671,1763045552530,-1500.0,0.00057,120]
[393864672,1763045552540,-1000.0,0.00057,120]
[393864673,1763045552550,-200.0,0.00057349,120]
[393864674,1763045552560,-156.0,0.000574,120]
[393864675,1763045552570,-312208.44931019,0.000577,120]
[393864676,1763045552580,-209.0,0.000577,120]
[393864677,1763045552590,-380.42601679,0.0005796,120]
[393864678,1763045552599,-167.18839409,0.00058,60]
[393864679,1763045552609,-1500.0,0.00058,120]
[393864680,1763045552619,-200.0,0.00058,120]
[393864681,1763045552634,-1000.0,0.00058,120]
[393864682,1763045552645,-911.63997223,0.00058157,28]
[393864683,1763045552655,-5000.0,0.00058348,30]
[393864684,1763045552665,-5000.0,0.00058348,30]
[393864685,1763045552675,-200.0,0.0005875,120]
[393864686,1763045552685,-200.0,0.0005875,120]
[393864687,1763045552694,-200.0,0.0005875,120]
[393864688,1763045552704,-200.0,0.0005875,120]
[393864689,1763045552715,-200.0,0.0005875,120]
[393864690,1763045552725,-200.0,0.0005875,120]
[393864691,1763045552734,-5184.47688259,0.00058875,60]
[393864692,1763045552743,-2000.0,0.00059,120]
[393864693,1763045552752,-1000.0,0.00059,120]
[393864694,1763045552762,-209.0,0.00059,120]
[393864695,1763045552771,-200.0,0.000591,120]
[393864696,1763045552780,-177.669168,0.0005912,2]
[393864697,1763045552789,-1000.0,0.00059443,120]
[393864698,1763045552799,-421.25,0.00059752,30]
[393864699,1763045552808,-2227.03945919,0.000599,120]
[393864700,1763045552818,-2000.0,0.0006,120]
[393864701,1763045552827,-200.0,0.0006,120]
[393864702,1763045552837,-1998.91689858,0.0006,120]
[393864703,1763045552846,-13570.95579351,0.0006,120]
[393864704,1763045552856,-292.1706796,0.0006,120]
[393864705,1763045552865,-565.04599418,0.0006,120]
[393864706,1763045552879,-630.0027016,0.0006,30]
[393864707,1763045552889,-1000.0,0.0006,120]
[393864708,1763045552899,-1616.53,0.0006,14]
[393864709,1763045552908,-271.05,0.0006,30]
[393864710,1763045552918,-156.0,0.000602,120]
[393864711,1763045552928,-2000.0,0.00061,120]
[393864712,1763045552937,-150.0,0.00061,120]
[393864713,1763045552947,-1000.0,0.00061,120]
[393864714,1763045552956,-200.0,0.000618,120]
[393864715,1763045552966,-2000.0,0.00062,120]
[393864716,1763045552975,-1000.0,0.00062,120]
[393864717,1763045552985,-585.43,0.00062,14]
[393864718,1763045552995,-2000.0,0.00063,120]
[393864719,1763045553006,-156.0,0.00063,120]
[393864720,1763045553016,-1000.0,0.00063,120]
[393864721,1763045553026,-2000.0,0.00064,120]
[393864722,1763045553036,-1000.0,0.00064,120]
[393864723,1763045553046,-1000.0,0.00064,120]
[393864724,1763045553056,-5944.82014796,0.0006428,24]
[393864725,1763045553066,-200.0,0.000645,120]
[393864726,1763045553076,-1998.24333978,0.00065,120]
[393864727,1763045553086,-1000.0,0.00065,120]
[393864728,1763045553096,-177.669168,0.00065609,2]
[393864729,1763045553105,-156.0,0.000658,120]
[393864730,1763045553115,-1000.0,0.00066,120]
[393864731,1763045553130,-2000.0,0.00067,120]
[393864732,1763045553140,-1000.0,0.00067,120]
[393864733,1763045553151,-249.58567,0.000672,120]
[393864734,1763045553161,-1000.0,0.00068,120]
[393864735,1763045553171,-156.0,0.000686,120]
[393864736,1763045553181,-1000.0,0.00069,120]
[393864737,1763045553191,-3000.0,0.00069,120]
[393864738,1763045553201,-3000.0,0.0006901,120]
[393864739,1763045553211,-3000.0,0.0006902,120]
[393864740,1763045553223,-5793.605689,0.0006903,120]
[393864741,1763045553233,-2000.0,0.00069901,35]
[393864742,1763045553243,-1000.0,0.00069999,120]
[393864743,1763045553255,-2000.0,0.0007,120]
[393864744,1763045553264,-200.0,0.0007,120]
[393864745,1763045553274,-1998.91689858,0.0007,120]
[393864746,1763045553288,-1000.0,0.0007,120]
[393864747,1763045553299,-5000.0,0.00070238,30]
[393864748,1763045553310,-200.0,0.000705,120]
[393864749,1763045553320,-200.0,0.000705,120]
[393864750,1763045553331,-200.0,0.000705,120]
[393864751,1763045553341,-200.0,0.000705,120]
[393864752,1763045553352,-200.0,0.000705,120]
[393864753,1763045553362,-200.0,0.000705,120]
[393864754,1763045553377,-293.86367042,0.000705,120]
[393864755,1763045553387,-1000.0,0.00071,120]
[393864756,1763045553397,-156.0,0.000714,120]
[393864757,1763045553407,-1000.0,0.00072,120]
[393864758,1763045553416,-177.669168,0.00072098,120]
[393864759,1763045553426,-911.63997223,0.00072614,28]
[393864760,1763045553436,-1000.0,0.00073,120]
[393864761,1763045553445,-1000.0,0.00074,120]
[393864762,1763045553454,-1000.0,0.00074,120]
[393864763,1763045553465,-156.0,0.000742,120]
[393864764,1763045553474,-12933.15274072,0.000749,120]
[393864765,1763045553484,-2000.0,0.00075,120]
[393864766,1763045553494,-210.42641012,0.00075,2]
[393864767,1763045553504,-1998.24333978,0.00075,120]
[393864768,1763045553514,-1000.0,0.00075,120]
[393864769,1763045553524,-32690.481,0.00075,120]
[393864770,1763045553534,-11818.10687623,0.00075444,120]
[393864771,1763045553544,-1000.0,0.00076,120]
[393864772,1763045553556,-160.0,0.00077,120]
[393864773,1763045553567,-1000.0,0.00077,120]
[393864774,1763045553578,-103315.32698731,0.00077486,120]
[393864775,1763045553589,-1709.83567946,0.000777,120]
[393864776,1763045553600,-200.0,0.00078,120]
[393864777,1763045553611,-1000.0,0.00078,120]
[393864778,1763045553629,-177.669168,0.00078587,120]
[393864779,1763045553639,-1000.0,0.00079,120]
[393864780,1763045553650,-1616.53,0.00079,14]
[393864781,1763045553660,-271.05,0.00079,30]
[393864782,1763045553671,-2000.0,0.0008,120]
[393864783,1763045553681,-200.0,0.0008,120]
[393864784,1763045553691,-1998.91689858,0.0008,120]
[393864785,1763045553702,-678.31517367,0.0008,50]
[393864786,1763045553712,-153.0,0.0008,120]
[393864787,1763045553722,-1799.913924,0.0008,120]
[393864788,1763045553732,-25007.30337831,0.000835,120]
[393864789,1763045553743,-1000.0,0.00084,120]
[393864790,1763045553753,-585.43,0.00084,30]
[393864791,1763045553762,-1086129.52352624,0.00084444,30]
[393864792,1763045555939,200.0,0.00037494,30]
[393864794,1763045581687,1009.3,0.00032877,120]
[393864795,1763045614008,1927.88370263,0.00037494,20]
[393864814,1763045787240,200.0,0.00037502,30]
[393864819,1763046080675,200.0,0.00037798,30]
[393864828,1763046530587,684.4571092,0.00037798,20]
[393864910,1763046632034,-1292.04,0.00025204,2]
[393864912,1763046632045,-5.96,0.00025204,2]
[393864914,1763046632055,-449.07731312,0.00043535,28]
[393864955,1763046637962,-120.69766955,0.00043535,28]
[393864956,1763046637972,-900.87294816,0.00043535,2]
[393864957,1763046637982,-180.36,0.00043625,2]
[393864958,1763046637991,-180.36,0.00043625,2]
[393864959,1763046638000,-180.36,0.00043625,2]
[393864960,1763046638009,-180.36,0.00043625,2]
[393864961,1763046638019,-500.0,0.00043634,7]
[393864962,1763046638028,-500.0,0.00043634,7]
[393864963,1763046638038,-500.0,0.00043634,7]
[393864964,1763046638047,-500.0,0.00043634,7]
[393864965,1763046638056,-246.66840574,0.00043634,7]
[393864966,1763046638067,-45662.96223887,0.00043635,2]
[393864967,1763046638079,-517.18333002,0.00043635,2]
[393864978,1763046640138,-6138.00773062,0.00043635,2]
[393864982,1763046640176,-567.41619488,0.00043635,2]
[393864987,1763046640215,-1859.66519529,0.00043635,2]
[393865039,1763046643203,-21200.0,0.00043635,2]
[393865043,1763046643240,-3500.0,0.00043635,2]
[393865106,1763046646352,-341.0,0.00043635,2]
[393865107,1763046646446,-17834.72970281,0.00043635,2]
[393865108,1763046646457,-15635.0,0.00043635,2]
[393865121,1763047332130,500.0,0.00037828,20]
[393865146,1763047638061,500.83556389,0.00037828,120]
[393865147,1763047664734,10000.01,0.00018,2]
[393865148,1763047664763,10000.01,0.00018,2]
[393865149,1763047664789,1283.46450707,0.00018,2]
[393865155,1763047689029,286.6678497,0.000125,2]
[393865163,1763047707014,9713.3421503,0.00017,2]
[393865164,1763047707039,691.43802161,0.00017,2]
[393865165,1763047709192,324.87334741,0.0002,7]
[393865167,1763047709792,447.345973,0.00015,2]
[393865169,1763047712244,4715.10081071,0.00018,2]
[393865173,1763047717632,4146.12519468,0.0002465,2]
[393865174,1763047717655,4507.94367956,0.0002465,2]
[393865175,1763047718177,5492.06632044,0.0001,2]
[393865176,1763047718205,10000.01,0.0001,2]
[393865177,1763047718231,10000.01,0.0001,2]
[393865178,1763047718256,1507.90367956,0.0001,2]
[393865179,1763047718802,2379.44058144,0.0001,2]
[393865182,1763047798871,1657.64469379,0.00025205,2]
[393865183,1763047815694,2310.44202207,0.00025205,2]
[393865232,1763047832711,-150.0,0.00025337,2]
[393865233,1763047832721,-330.43829154,0.00025469,3]
[393865252,1763047838099,-569.56170846,0.00025469,3]
[393865254,1763047838108,-177.0,0.00027337,2]
[393865256,1763047838117,-300.0,0.00028753,2]
[393865258,1763047838127,-300.0,0.00028753,2]
[393865260,1763047838136,-738.43829154,0.00028753,2]
[393865262,1763047838148,-461.56170846,0.00028753,2]
[393865264,1763047838160,-6862.0138695,0.00028754,2]
[393865266,1763047838169,-204.0,0.00029337,2]
[393865268,1763047838178,-928.38040903,0.0002938,2]
[393865269,1763047838187,-153.07828241,0.00029624,5]
[393865270,1763047838196,-256.75655889,0.00029624,5]
[393865271,1763047838205,-242.488186,0.00030003,2]
[393865272,1763047838214,-332.92114049,0.00030862,2]
[393865273,1763047838224,-332.92114049,0.00030863,2]
[393865274,1763047838237,-500.0,0.0003087,2]
[393865275,1763047838246,-200.64320754,0.0003087,2]
[393865276,1763047838255,-500.0,0.0003087,2]
[393865277,1763047838264,-500.0,0.0003087,2]
[393865278,1763047838273,-500.0,0.0003087,2]
[393865279,1763047838282,-500.0,0.0003087,2]
[393865280,1763047838292,-500.0,0.0003087,2]
[393865281,1763047838301,-225.33964024,0.0003087,2]
[393865282,1763047838313,-500.0,0.0003087,2]
[393865283,1763047838322,-500.0,0.0003087,2]
[393865284,1763047838331,-500.0,0.0003087,2]
[393865285,1763047838340,-500.0,0.0003087,2]
[393865286,1763047838349,-500.0,0.0003087,2]
[393865287,1763047838359,-260.14572431,0.0003087,2]
[393865288,1763047838368,-338.86885697,0.0003087,2]
[393865289,1763047838377,-500.0,0.0003087,2]
[393865290,1763047838386,-500.0,0.0003087,2]
[393865291,1763047838396,-500.0,0.0003087,2]
[393865292,1763047838407,-500.0,0.0003087,2]
[393865293,1763047838416,-500.0,0.0003087,2]
[393865294,1763047838424,-500.0,0.0003087,2]
[393865295,1763047838434,-500.0,0.0003087,2]
[393865296,1763047838442,-500.0,0.0003087,2]
[393865297,1763047838452,-500.0,0.0003087,2]
[393865299,1763047838461,-500.0,0.0003087,2]
[393865300,1763047838470,-500.0,0.0003087,2]
[393865302,1763047838479,-500.0,0.0003087,2]
[393865304,1763047838489,-500.0,0.0003087,2]
[393865306,1763047838498,-288.46849488,0.0003087,2]
[393865307,1763047838507,-500.0,0.0003087,2]
[393865309,1763047838517,-241.04451624,0.0003087,2]
[393865312,1763047838532,-258.95548376,0.0003087,2]
[393865314,1763047838542,-500.0,0.0003087,2]
[393865316,1763047838552,-500.0,0.0003087,2]
[393865318,1763047838561,-500.0,0.0003087,2]
[393865320,1763047838570,-500.0,0.0003087,2]
[393865322,1763047838579,-500.0,0.0003087,2]
[393865324,1763047838588,-500.0,0.0003087,2]
[393865326,1763047838598,-500.0,0.0003087,2]
[393865328,1763047838607,-500.0,0.0003087,2]
[393865330,1763047838616,-500.0,0.0003087,2]
[393865331,1763047838626,-500.0,0.0003087,2]
[393865332,1763047838635,-500.0,0.0003087,2]
[393865333,1763047838644,-500.0,0.0003087,2]
[393865334,1763047838656,-500.0,0.0003087,2]
[393865335,1763047838665,-500.0,0.0003087,2]
[393865336,1763047838679,-500.0,0.0003087,2]
[393865337,1763047838689,-500.0,0.0003087,2]
[393865338,1763047838698,-500.0,0.0003087,2]
[393865339,1763047838708,-500.0,0.0003087,2]
[393865340,1763047838717,-500.0,0.0003087,2]
[393865341,1763047838727,-500.0,0.0003087,2]
[393865342,1763047838736,-345.21933685,0.0003087,2]
[393865343,1763047838745,-500.0,0.0003087,2]
[393865344,1763047838754,-500.0,0.0003087,2]
[393865345,1763047838764,-500.0,0.0003087,2]
[393865346,1763047838773,-500.0,0.0003087,2]
[393865347,1763047838785,-500.0,0.0003087,2]
[393865348,1763047838795,-500.0,0.0003087,2]
[393865349,1763047838804,-500.0,0.0003087,2]
[393865350,1763047838814,-500.0,0.0003087,2]
[393865351,1763047838824,-500.0,0.0003087,2]
[393865352,1763047838833,-500.0,0.0003087,2]
[393865353,1763047838842,-500.0,0.0003087,2]
[393865354,1763047838852,-500.0,0.0003087,2]
[393865355,1763047838861,-500.0,0.0003087,2]
[393865356,1763047838871,-500.0,0.0003087,2]
[393865357,1763047838880,-500.0,0.0003087,2]
[393865358,1763047838889,-505.06329785,0.0003087,2]
[393865359,1763047838899,-500.0,0.0003087,2]
[393865360,1763047838910,-500.0,0.0003087,2]
[393865361,1763047838920,-500.0,0.0003087,2]
[393865362,1763047838929,-500.0,0.0003087,2]
[393865363,1763047838938,-112.76188154,0.0003087,2]
[393865381,1763047840454,-387.23811846,0.0003087,2]
[393865382,1763047840464,-500.0,0.0003087,2]
[393865384,1763047840473,-453.3309614,0.0003087,2]
[393865386,1763047840486,-46.6690386,0.0003087,2]
[393865388,1763047840496,-500.0,0.0003087,2]
[393865389,1763047840505,-500.0,0.0003087,2]
[393865390,1763047840514,-500.0,0.0003087,2]
[393865391,1763047840523,-500.0,0.0003087,2]
[393865392,1763047840532,-500.0,0.0003087,2]
[393865393,1763047840541,-500.0,0.0003087,2]
[393865394,1763047840551,-500.0,0.0003087,2]
[393865395,1763047840560,-500.0,0.0003087,2]
[393865396,1763047840569,-45.46065216,0.0003087,2]
[393865397,1763047840581,-454.53934784,0.0003087,2]
[393865398,1763047840590,-354.36474362,0.0003087,2]
[393865417,1763047843630,-145.63525638,0.0003087,2]
[393865418,1763047843640,-500.0,0.0003087,2]
[393865419,1763047843649,-500.0,0.0003087,2]
[393865420,1763047843660,-500.0,0.0003087,2]
[393865422,1763047843669,-500.0,0.0003087,2]
[393865424,1763047843679,-500.0,0.0003087,2]
[393865426,1763047843688,-500.0,0.0003087,2]
[393865428,1763047843697,-500.0,0.0003087,2]
[393865430,1763047843708,-9121.88919664,0.00030872,2]
[393865433,1763047843719,-4471.74,0.00030872,2]
[393865453,1763047846600,-36406.37080336,0.00030872,2]
[393865454,1763047846610,-500.0,0.00030873,5]
[393865455,1763047846620,-500.0,0.00030873,5]
[393865456,1763047846630,-412.11065633,0.00030873,5]
[393865457,1763047846639,-501.9409669,0.00030873,5]
[393865458,1763047846650,-501.1549955,0.00030873,5]
[393865459,1763047846661,-500.0,0.00030873,5]
[393865460,1763047846670,-500.0,0.00030873,5]
[393865461,1763047846679,-500.0,0.00030873,5]
[393865462,1763047846688,-579.97833016,0.00030873,5]
[393865463,1763047846697,-501.72405648,0.00030873,5]
[393865464,1763047846706,-501.80705918,0.00030873,5]
[393865465,1763047846715,-501.17308663,0.00030873,5]
[393865466,1763047846724,-505.3268785,0.00030873,5]
[393865467,1763047846733,-500.0,0.00030873,5]
[393865468,1763047846743,-500.0,0.00030873,5]
[393865469,1763047846752,-500.0,0.00030873,5]
[393865470,1763047846761,-500.0,0.00030875,2]
[393865471,1763047846770,-928.38040903,0.00030912,2]
[393865472,1763047846779,-160.0,0.00030916,2]
[393865473,1763047846788,-420.0,0.00031029,2]
[393865475,1763047846797,-500.0,0.00031149,2]
[393865477,1763047846806,-231.0,0.00031337,2]
[393865479,1763047846815,-330.99422104,0.00031421,5]
[393865481,1763047846824,-502.04118686,0.00031421,5]
[393865483,1763047846833,-1000.0,0.00031421,5]
[393865484,1763047846842,-514.37580653,0.00031421,5]
[393865485,1763047846851,-1000.0,0.00031421,5]
[393865486,1763047846861,-1000.0,0.00031421,5]
[393865487,1763047846870,-1004.43111576,0.00031421,5]
[393865488,1763047846881,-500.0,0.00031423,2]
[393865489,1763047846891,-420.0,0.00031464,2]
[393865490,1763047846901,-753.21,0.000315,7]
[393865491,1763047846912,-500.0,0.00031697,2]
[393865492,1763047846922,-1500.0,0.00031968,5]
[393865493,1763047846931,-1500.0,0.00031968,5]
[393865494,1763047846940,-1500.0,0.00031968,5]
[393865495,1763047846949,-500.0,0.00031971,2]
[393865496,1763047846958,-508.57098806,0.00032067,5]
[393865497,1763047846969,-500.0,0.00032075,5]
[393865498,1763047846978,-150.0,0.00032121,2]
[393865499,1763047846987,-362.98690802,0.00032245,2]
[393865500,1763047846997,-928.38040903,0.00032444,2]
[393865501,1763047847007,-856.87,0.00032506,3]
[393865502,1763047847017,-2000.0,0.00032516,5]
[393865503,1763047847027,-1710.552712,0.00032516,5]
[393865504,1763047847037,-1821.02387417,0.00032516,5]
[393865505,1763047847047,-1000.0,0.00032623,5]
[393865506,1763047847057,-500.41926643,0.0003265,5]
[393865507,1763047847067,-500.43470923,0.0003265,5]
[393865508,1763047847076,-160.0,0.000329,120]
[393865509,1763047847086,-2500.0,0.00033064,5]
[393865510,1763047847096,-571.23,0.00033161,3]
[393865511,1763047847106,-285.62,0.00033161,3]
[393865512,1763047847115,-1000.0,0.00033171,5]
[393865513,1763047847124,-258.0,0.00033337,120]
[393865514,1763047847134,-242.0,0.00033486,2]
[393865515,1763047847144,-3000.0,0.00033612,5]
[393865516,1763047847153,-928.38040903,0.00033975,2]
[393865517,1763047847164,-251.27494503,0.0003399,60]
[393865518,1763047847173,-500.0,0.00034373,5]
[393865519,1763047847182,-163.457234,0.0003438,2]
[393865520,1763047847191,-1142.46,0.00034531,3]
[393865521,1763047847200,-571.24,0.00034531,3]
[393865522,1763047847210,-1000.0,0.00034921,5]
[393865523,1763047847219,-237.3,0.00035041,2]
[393865524,1763047847233,-285.0,0.00035337,120]
[393865525,1763047847242,-1508.85603202,0.00035468,5]
[393865526,1763047847252,-753.21,0.000355,14]
[393865527,1763047847261,-929.30878944,0.00035507,2]
[393865528,1763047847272,-477.59421077,0.00036,30]
[393865529,1763047847281,-242.488186,0.00036769,56]
[393865530,1763047847290,-4100.0,0.00037,120]
[393865531,1763047847299,-312.0,0.00037337,120]
[393865532,1763047847310,-851.0,0.00037763,3]
[393865533,1763047847319,-627.70313445,0.00037773,5]
[393865534,1763047847328,-332.92114049,0.00037818,3]
[393865535,1763047847338,-588.71673954,0.00037828,20]
[393865536,1763047847347,-6422.0,0.00037828,20]
[393865537,1763047847357,-250.0,0.00037828,10]
[393865538,1763047847367,-158.0,0.00037828,10]
[393865539,1763047847377,-162.64,0.000379,30]